[Event "3rd BSSZ-Aranytiz IM 2019"]
[Site "Budapest"]
[Date "2019.08.21"]
[Round "5.3"]
[White "Havanecz, Bianka"]
[Black "Urhegyi, Marton"]
[Result "1-0"]
[ECO "D15"]
[WhiteElo "2281"]
[BlackElo "2256"]
[Annotator "NA"]
[PlyCount "117"]
[EventDate "2019.08.16"]
[EventType "tourn"]
[EventCountry "HUN"]
[SourceTitle "playchess.com"]
[Source "ChessBase"]
[SourceQuality "1"]
[TimeControl "40/5400+30:1800+30"]

1. d4 {[%emt 0:00:02]} d5 {[%emt 0:00:05]} 2. c4 {[%emt 0:00:04]} c6 {[%emt 0:00:03]} 3. Nf3 {[%emt 0:00:05]} Nf6 {[%emt 0:00:05]} 4. Nc3 {[%emt 0:00:07]} a6 {[%emt 0:00:05]} 5. e3 {[%emt 0:00:06]} Bf5 {[%emt 0:00:08]} 6. Qb3 {[%emt 0:00:16]} Ra7 {[%emt 0:00:11]} 7. cxd5 {[%emt 0:01:00]} cxd5 {[%emt 0:00:18]} 8. Bd2 {[%emt 0:00:10]} e6 {[%emt 0:08:22]} 9. Rc1 {[%emt 0:00:31]} Bd6 {[%emt 0:02:58]} 10. Be2 {[%emt 0:07:16]} O-O {[%emt 0:02:03]} 11. O-O {[%emt 0:00:23]} Nc6 {[%emt 0:18:08]} 12. Na4 {[%emt 0:00:29]} Ne4 {[%emt 0:03:55]} 13. Be1 {[%emt 0:02:36]} Bc7 {[%emt 0:12:57]} 14. Nd2 {[%emt 0:11:58]} Na5 {[%emt 0:04:04]} 15. Qd1 {[%emt 0:00:27]} Qd6 {[%emt 0:05:04]} 16. f4 {[%emt 0:03:47]} Nc4 {[%emt 0:03:21]} 17. Nxc4 {[%emt 0:03:13]} dxc4 {[%emt 0:00:22]} 18. a3 {[%emt 0:02:17]} Qd7 {[%emt 0:07:49]} 19. Rxc4 {[%emt 0:02:03]} b5 {[%emt 0:02:50]} 20. Nc5 {[%emt 0:00:05]} Qd5 {[%emt 0:02:14]} 21. Rc1 {[%emt 0:00:07]} Nxc5 {[%emt 0:00:37]} 22. Rxc5 {[%emt 0:02:10]} Qa2 {[%emt 0:01:03]} 23. Bc3 {[%emt 0:02:45]} Bd6 {[%emt 0:02:53]} 24. Rc6 {[%emt 0:00:05]} Be7 {[%emt 0:03:09]} 25. Bf3 {[%emt 0:01:41]} Rd8 {[%emt 0:03:54]} 26. Ba5 {[%emt 0:05:07]} Rf8 {[%emt 0:03:24]} 27. Qc1 {[%emt 0:01:47]} Bd3 {[%emt 0:05:50]} 28. Rd1 {[%emt 0:00:22]} Bc4 {[%emt 0:00:25]} 29. Be4 {[%emt 0:00:56]} Bd5 {[%emt 0:01:46]} 30. Bb1 {[%emt 0:00:49]} Qxb1 {[%emt 0:00:44]} 31. Qxb1 {[%emt 0:00:05]} Bxc6 {[%emt 0:00:01]} 32. Rc1 {[%emt 0:05:03]} Ba8 {[%emt 0:00:54]} 33. Rc3 {[%emt 0:01:06]} Rb7 {[%emt 0:01:10]} 34. b4 {[%emt 0:01:28]} Rbb8 {[%emt 0:00:20]} 35. Qc2 {[%emt 0:04:37]} Bb7 {[%emt 0:03:25]} 36. f5 {[%emt 0:00:43]} Rbc8 {[%emt 0:01:06]} 37. Bc7 {[%emt 0:00:27]} Bd5 {[%emt 0:00:42]} 38. h3 {[%emt 0:09:28]} Rfe8 {[%emt 0:02:00]} 39. e4 {[%emt 0:02:28]} Bc4 {[%emt 0:00:20]} 40. Be5 {[%emt 0:00:00]} exf5 {[%emt 0:00:00]} 41. exf5 {[%emt 0:03:23]} f6 {[%emt 0:02:35]} 42. Bf4 {[%emt 0:02:00]} Bd8 {[%emt 0:05:15]} 43. Re3 {[%emt 0:06:42]} Bb6 {[%emt 0:01:00]} 44. Qd2 {[%emt 0:04:35]} Red8 {[%emt 0:04:00]} 45. Re4 {[%emt 0:00:08]} Bd5 {[%emt 0:00:54]} 46. Re7 {[%emt 0:02:55]} Kf8 {[%emt 0:05:23]} 47. Re1 {[%emt 0:00:24]} Rc4 {[%emt 0:01:08]} 48. Be3 {[%emt 0:00:17]} Be4 {[%emt 0:01:01]} 49. Qf2 {[%emt 0:01:01]} Bxd4 {[%emt 0:02:47]} 50. Bxd4 {[%emt 0:00:16]} Rdxd4 {[%emt 0:00:35]} 51. Re2 {[%emt 0:00:27]} h6 {[%emt 0:05:07]} 52. Qf4 {[%emt 0:02:16]} Kg8 {[%emt 0:03:19]} 53. Kh2 {[%emt 0:00:46]} Kh7 {[%emt 0:01:05]} 54. Qg4 {[%emt 0:00:28]} Kh8 {[%emt 0:00:56]} 55. Qg6 {[%emt 0:05:45]} Kg8 {[%emt 0:00:30]} 56. Re3 {[%emt 0:00:54]} Kh8 {[%emt 0:01:09]} 57. Rg3 {[%emt 0:01:55]} Rc7 {[%emt 0:00:11]} 58. Qe8+ {[%emt 0:00:16]} Kh7 {[%emt 0:00:06]} 59. Rg4 {[%emt 0:00:24]} 1-0

[Event "3rd BSSZ-Aranytiz IM 2019"]
[Site "Budapest"]
[Date "2019.08.21"]
[Round "5.4"]
[White "Martic, Zlatko"]
[Black "Luong, Phuong Hanh"]
[Result "1/2-1/2"]
[ECO "D90"]
[WhiteElo "2284"]
[BlackElo "2313"]
[Annotator "NA"]
[PlyCount "137"]
[EventDate "2019.08.16"]
[EventType "tourn"]
[EventCountry "HUN"]
[SourceTitle "playchess.com"]
[Source "ChessBase"]
[SourceQuality "1"]
[TimeControl "40/5400+30:1800+30"]

1. d4 {[%emt 0:00:09]} Nf6 {[%emt 0:09:28]} 2. c4 {[%emt 0:00:33]} g6 {[%emt 0:00:30]} 3. Nc3 {[%emt 0:00:15]} d5 {[%emt 0:00:05]} 4. Nf3 {[%emt 0:00:24]} Bg7 {[%emt 0:00:05]} 5. h4 {[%emt 0:00:43]} h6 {[%emt 0:00:51]} 6. cxd5 {[%emt 0:01:05]} Nxd5 {[%emt 0:00:08]} 7. e4 {[%emt 0:00:34]} Nxc3 {[%emt 0:00:08]} 8. bxc3 {[%emt 0:00:01]} c5 {[%emt 0:00:16]} 9. Bb5+ {[%emt 0:04:17]} Bd7 {[%emt 0:03:43]} 10. Rb1 {[%emt 0:01:55]} Nc6 {[%emt 0:05:28]} 11. d5 {[%emt 0:01:55]} Ne5 {[%emt 0:01:13]} 12. Nxe5 {[%emt 0:02:19]} Bxe5 {[%emt 0:00:20]} 13. c4 {[%emt 0:29:16]} Bxb5 {[%emt 0:01:35]} 14. Rxb5 {[%emt 0:00:14]} b6 {[%emt 0:00:19]} 15. a4 {[%emt 0:07:14]} Qd6 {[%emt 0:03:57]} 16. a5 {[%emt 0:01:26]} Bc3+ {[%emt 0:02:28]} 17. Bd2 {[%emt 0:00:18]} Qe5 {[%emt 0:00:41]} 18. O-O {[%emt 0:00:39]} Bxd2 {[%emt 0:00:33]} 19. Qxd2 {[%emt 0:00:08]} Qxe4 {[%emt 0:01:52]} 20. axb6 {[%emt 0:02:34]} axb6 {[%emt 0:01:07]} 21. h5 {[%emt 0:07:10]} gxh5 {[%emt 0:13:21]} 22. Re1 {[%emt 0:00:23]} Qg6 {[%emt 0:06:33]} 23. d6 {[%emt 0:06:31]} O-O {[%emt 0:01:11]} 24. dxe7 {[%emt 0:00:28]} Rfe8 {[%emt 0:00:57]} 25. Rb3 {[%emt 0:00:33]} h4 {[%emt 0:00:30]} 26. Rd3 {[%emt 0:01:25]} Kh7 {[%emt 0:08:40]} 27. Rd8 {[%emt 0:15:34]} h3 {[%emt 0:09:29]} 28. g3 {[%emt 0:06:20]} Qc6 {[%emt 0:00:11]} 29. Qd3+ {[%emt 0:03:56]} Kg7 {[%emt 0:01:48]} 30. f3 Qc7 31. Rd6 {[%emt 0:01:58]} Rxe7 {[%emt 0:04:15]} 32. Qc3+ {[%emt 0:01:27]} Kh7 {[%emt 0:03:35]} 33. Qd3+ {[%emt 0:00:57]} Kg8 {[%emt 0:00:38]} 34. Rxe7 {[%emt 0:01:44]} Qxe7 {[%emt 0:00:08]} 35. Kh2 {[%emt 0:00:09]} Qg5 {[%emt 0:01:26]} 36. Rd5 {[%emt 0:00:35]} Qg6 {[%emt 0:02:53]} 37. Qd2 {[%emt 0:01:20]} Qf6 {[%emt 0:06:11]} 38. Qe2 {[%emt 0:01:33]} Kg7 {[%emt 0:04:01]} 39. Kxh3 {[%emt 0:00:18]} Qe6+ {[%emt 0:03:00]} 40. Qxe6 {[%emt 0:00:00]} fxe6 {[%emt 0:00:00]} 41. Rd6 {[%emt 0:00:19]} Kf6 {[%emt 0:00:10]} 42. f4 {[%emt 0:00:41]} Ra4 {[%emt 0:04:01]} 43. Rxb6 {[%emt 0:00:11]} Rxc4 {[%emt 0:00:06]} 44. Kg4 {[%emt 0:00:11]} Rc3 {[%emt 0:01:30]} 45. Rb8 {[%emt 0:00:35]} h5+ {[%emt 0:00:22]} 46. Kh4 {[%emt 0:00:16]} Rd3 {[%emt 0:02:40]} 47. Rc8 {[%emt 0:05:50]} Rd5 {[%emt 0:00:07]} 48. g4 {[%emt 0:02:01]} hxg4 {[%emt 0:00:47]} 49. Kxg4 {[%emt 0:00:06]} Ke7 {[%emt 0:00:19]} 50. Kf3 {[%emt 0:00:10]} Kd7 {[%emt 0:00:10]} 51. Ra8 {[%emt 0:00:18]} Rd4 {[%emt 0:08:03]} 52. Ke3 {[%emt 0:01:05]} Kc6 {[%emt 0:00:34]} 53. Rc8+ {[%emt 0:06:13]} Kd5 {[%emt 0:00:21]} 54. Rd8+ {[%emt 0:00:08]} Kc4 {[%emt 0:00:11]} 55. Rc8 {[%emt 0:00:14]} Rd6 {[%emt 0:01:44]} 56. Ke4 {[%emt 0:00:42]} Kb4 {[%emt 0:01:20]} 57. Ke5 {[%emt 0:01:18]} Rb6 {[%emt 0:00:15]} 58. Rc7 {[%emt 0:00:17]} Kb5 {[%emt 0:06:04]} 59. Rc8 {[%emt 0:00:40]} c4 {[%emt 0:00:55]} 60. Kd4 {[%emt 0:00:36]} Rd6+ {[%emt 0:00:07]} 61. Kc3 {[%emt 0:04:35]} Rd3+ {[%emt 0:00:07]} 62. Kc2 {[%emt 0:00:48]} Rd4 {[%emt 0:01:00]} 63. Rf8 {[%emt 0:02:03]} Re4 {[%emt 0:06:34]} 64. f5 {[%emt 0:00:46]} exf5 {[%emt 0:01:57]} 65. Rxf5+ {[%emt 0:00:08]} Kb4 {[%emt 0:00:03]} 66. Rf3 {[%emt 0:00:43]} Re2+ {[%emt 0:00:11]} 67. Kc1 {[%emt 0:00:12]} Ra2 {[%emt 0:00:31]} 68. Rh3 {[%emt 0:00:24]} c3 {[%emt 0:00:51]} 69. Rh8 {[%emt 0:00:15]} 1/2-1/2

[Event "3rd BSSZ-Aranytiz IM 2019"]
[Site "Budapest"]
[Date "2019.08.21"]
[Round "5.5"]
[White "Nemeth, Zoltan"]
[Black "Maerevoet, Sim"]
[Result "0-1"]
[ECO "D38"]
[WhiteElo "2275"]
[BlackElo "2321"]
[Annotator "NA"]
[PlyCount "148"]
[EventDate "2019.08.16"]
[EventType "tourn"]
[EventCountry "HUN"]
[SourceTitle "playchess.com"]
[Source "ChessBase"]
[SourceQuality "1"]
[TimeControl "40/5400+30:1800+30"]

1. d4 {[%emt 0:00:02]} Nf6 {[%emt 0:00:14]} 2. c4 {[%emt 0:00:18]} e6 {[%emt 0:00:08]} 3. Nf3 {[%emt 0:01:53]} d5 {[%emt 0:00:30]} 4. Nc3 {[%emt 0:00:58]} Bb4 {[%emt 0:01:37]} 5. a3 {[%emt 0:05:23]} Bxc3+ {[%emt 0:00:09]} 6. bxc3 {[%emt 0:00:05]} c5 {[%emt 0:06:17]} 7. e3 {[%emt 0:01:16]} O-O {[%emt 0:02:05]} 8. Bd3 {[%emt 0:04:36]} dxc4 {[%emt 0:01:54]} 9. Bxc4 {[%emt 0:00:07]} Qc7 {[%emt 0:00:12]} 10. Bb3 {[%emt 0:11:20]} b6 {[%emt 0:08:36]} 11. O-O {[%emt 0:01:23]} Bb7 {[%emt 0:00:20]} 12. Ne5 {[%emt 0:02:04]} Nbd7 {[%emt 0:07:58]} 13. f4 {[%emt 0:00:28]} cxd4 {[%emt 0:08:02]} 14. cxd4 {[%emt 0:00:21]} Bd5 {[%emt 0:00:41]} 15. Bd2 {[%emt 0:03:53]} Qb7 {[%emt 0:03:20]} 16. Bb4 {[%emt 0:00:18]} Rfc8 {[%emt 0:02:22]} 17. Bxd5 {[%emt 0:07:32]} Qxd5 {[%emt 0:02:05]} 18. Qd3 {[%emt 0:07:41]} Rc7 {[%emt 0:13:18]} 19. Rf3 {[%emt 0:04:46]} Rac8 {[%emt 0:02:58]} 20. Raf1 {[%emt 0:00:39]} Rc2 {[%emt 0:06:38]} 21. e4 {[%emt 0:04:41]} Qa2 {[%emt 0:03:15]} 22. Rg3 {[%emt 0:00:45]} g6 {[%emt 0:10:51]} 23. Nxd7 {[%emt 0:01:27]} Nxd7 {[%emt 0:00:07]} 24. f5 {[%emt 0:00:04]} exf5 {[%emt 0:03:21]} 25. exf5 {[%emt 0:13:50]} Rc1 {[%emt 0:00:49]} 26. fxg6 {[%emt 0:02:35]} Rxf1+ {[%emt 0:00:05]} 27. Kxf1 {[%emt 0:00:18]} hxg6 {[%emt 0:00:29]} 28. d5 {[%emt 0:11:07]} Qa1+ {[%emt 0:05:36]} 29. Be1 {[%emt 0:01:21]} Ne5 {[%emt 0:02:24]} 30. Qd2 {[%emt 0:06:23]} Nc4 {[%emt 0:00:49]} 31. Qc3 {[%emt 0:01:22]} Qxc3 {[%emt 0:00:27]} 32. Bxc3 {[%emt 0:00:54]} Rc5 {[%emt 0:01:47]} 33. Rh3 {[%emt 0:01:16]} f6 {[%emt 0:00:32]} 34. Bxf6 {[%emt 0:01:38]} Rxd5 {[%emt 0:00:05]} 35. g4 {[%emt 0:01:01]} Rd1+ {[%emt 0:01:28]} 36. Ke2 {[%emt 0:00:22]} Rd2+ {[%emt 0:00:03]} 37. Ke1 {[%emt 0:00:32]} Ra2 {[%emt 0:00:19]} 38. Rc3 {[%emt 0:02:25]} b5 {[%emt 0:00:42]} 39. Be7 {[%emt 0:01:28]} Rxh2 {[%emt 0:01:20]} 40. a4 {[%emt 0:00:00]} a6 {[%emt 0:00:00]} 41. axb5 {[%emt 0:00:50]} axb5 {[%emt 0:01:35]} 42. g5 {[%emt 0:00:25]} Kf7 {[%emt 0:01:57]} 43. Bd8 {[%emt 0:03:06]} Ke8 {[%emt 0:03:54]} 44. Bf6 {[%emt 0:00:34]} Kd7 {[%emt 0:01:26]} 45. Rf3 {[%emt 0:02:46]} Rg2 {[%emt 0:01:17]} 46. Rf4 {[%emt 0:00:34]} Nd6 {[%emt 0:07:32]} 47. Rh4 {[%emt 0:00:32]} Ke6 {[%emt 0:00:36]} 48. Rh8 {[%emt 0:01:00]} Kf5 {[%emt 0:01:50]} 49. Rb8 {[%emt 0:01:58]} Rg1+ {[%emt 0:01:30]} 50. Ke2 {[%emt 0:00:31]} Rb1 {[%emt 0:00:15]} 51. Rb6 {[%emt 0:03:23]} Ne4 {[%emt 0:00:23]} 52. Be7 {[%emt 0:00:21]} Rb3 {[%emt 0:02:46]} 53. Kf1 {[%emt 0:06:36]} Rb1+ {[%emt 0:03:10]} 54. Kg2 {[%emt 0:00:46]} Rb2+ {[%emt 0:01:06]} 55. Kg1 {[%emt 0:02:25]} Kf4 {[%emt 0:02:48]} 56. Rxg6 {[%emt 0:00:38]} Kg3 {[%emt 0:00:06]} 57. Kf1 {[%emt 0:02:13]} Kf3 {[%emt 0:00:06]} 58. Kg1 {[%emt 0:00:22]} Rg2+ {[%emt 0:00:19]} 59. Kf1 {[%emt 0:00:14]} Re2 {[%emt 0:02:44]} 60. Kg1 {[%emt 0:05:39]} Rg2+ {[%emt 0:00:54]} 61. Kf1 {[%emt 0:00:05]} Ng3+ {[%emt 0:00:11]} 62. Ke1 {[%emt 0:00:04]} Re2+ {[%emt 0:00:05]} 63. Kd1 {[%emt 0:00:02]} Rxe7 {[%emt 0:00:05]} 64. Rb6 {[%emt 0:00:53]} Ne2 {[%emt 0:04:23]} 65. g6 {[%emt 0:01:25]} Ke3 {[%emt 0:02:25]} 66. Kc2 {[%emt 0:01:57]} Nd4+ {[%emt 0:00:10]} 67. Kc3 {[%emt 0:01:14]} Rc7+ {[%emt 0:00:19]} 68. Kb2 {[%emt 0:00:20]} Kd3 {[%emt 0:00:31]} 69. Rf6 {[%emt 0:00:32]} Rc2+ {[%emt 0:00:25]} 70. Kb1 {[%emt 0:00:53]} Rg2 {[%emt 0:00:09]} 71. Rb6 {[%emt 0:01:39]} Kc3 {[%emt 0:00:26]} 72. Rf6 {[%emt 0:00:18]} b4 {[%emt 0:00:08]} 73. Rf1 {[%emt 0:01:03]} Rxg6 {[%emt 0:00:07]} 74. Rh1 {[%emt 0:00:06]} Nf3 {[%emt 0:00:28]} 0-1

[Event "3rd BSSZ-Aranytiz IM 2019"]
[Site "Budapest"]
[Date "2019.08.22"]
[Round "6.1"]
[White "Juhasz, Barbara"]
[Black "Maerevoet, Sim"]
[Result "1/2-1/2"]
[ECO "B51"]
[WhiteElo "2157"]
[BlackElo "2321"]
[Annotator "NA"]
[PlyCount "152"]
[EventDate "2019.08.16"]
[EventType "tourn"]
[EventCountry "HUN"]
[SourceTitle "playchess.com"]
[Source "ChessBase"]
[SourceQuality "1"]
[TimeControl "40/5400+30:1800+30"]

1. e4 {[%emt 0:00:07]} c5 {[%emt 0:00:11]} 2. Nf3 {[%emt 0:00:09]} d6 {[%emt 0:00:07]} 3. Bb5+ {[%emt 0:00:19]} Nd7 {[%emt 0:00:35]} 4. d4 {[%emt 0:00:09]} cxd4 {[%emt 0:00:08]} 5. Qxd4 {[%emt 0:00:06]} a6 {[%emt 0:00:31]} 6. Bxd7+ {[%emt 0:00:07]} Bxd7 {[%emt 0:00:07]} 7. c4 {[%emt 0:00:09]} Rc8 {[%emt 0:00:18]} 8. Nc3 {[%emt 0:00:21]} e5 {[%emt 0:00:18]} 9. Qd3 {[%emt 0:00:19]} Qc7 {[%emt 0:00:09]} 10. b3 {[%emt 0:00:10]} b5 {[%emt 0:00:05]} 11. Nd5 {[%emt 0:00:05]} Qc5 {[%emt 0:00:07]} 12. Be3 {[%emt 0:00:09]} bxc4 {[%emt 0:00:07]} 13. Qd1 {[%emt 0:00:07]} Qa5+ {[%emt 0:00:11]} 14. Nd2 {[%emt 0:00:06]} c3 {[%emt 0:00:56]} 15. Nc4 {[%emt 0:00:08]} c2+ {[%emt 0:00:04]} 16. Nxa5 {[%emt 0:00:07]} cxd1=Q+ {[%emt 0:00:07]} 17. Rxd1 {[%emt 0:00:04]} Nf6 {[%emt 0:00:15]} 18. Nxf6+ {[%emt 0:06:02]} gxf6 {[%emt 0:00:07]} 19. Nc4 {[%emt 0:00:14]} Rc6 {[%emt 0:06:22]} 20. O-O {[%emt 0:22:25]} Rg8 {[%emt 0:27:28]} 21. Rd2 {[%emt 0:04:49]} f5 {[%emt 0:02:43]} 22. exf5 {[%emt 0:01:16]} Bxf5 {[%emt 0:00:49]} 23. f4 {[%emt 0:07:01]} e4 {[%emt 0:16:20]} 24. Bd4 {[%emt 0:08:41]} Be6 {[%emt 0:04:29]} 25. Ne3 {[%emt 0:11:12]} f5 {[%emt 0:00:56]} 26. Bb2 {[%emt 0:00:16]} Be7 {[%emt 0:06:04]} 27. Rfd1 {[%emt 0:02:50]} Kd7 {[%emt 0:01:13]} 28. Kf2 {[%emt 0:04:14]} h5 {[%emt 0:04:01]} 29. Ba3 {[%emt 0:02:11]} a5 {[%emt 0:05:23]} 30. Rd4 {[%emt 0:00:29]} Ra8 {[%emt 0:01:06]} 31. Ra4 {[%emt 0:03:47]} Bd8 {[%emt 0:03:10]} 32. Bb2 {[%emt 0:01:48]} Bc7 {[%emt 0:04:58]} 33. Rd2 {[%emt 0:06:41]} Ke7 {[%emt 0:02:05]} 34. g3 {[%emt 0:02:09]} Rb8 {[%emt 0:00:57]} 35. h3 {[%emt 0:06:51]} Rb4 {[%emt 0:03:13]} 36. Rxb4 {[%emt 0:00:11]} axb4 {[%emt 0:00:05]} 37. g4 {[%emt 0:03:07]} hxg4 {[%emt 0:01:17]} 38. hxg4 {[%emt 0:00:04]} fxg4 {[%emt 0:00:05]} 39. f5 {[%emt 0:00:32]} Bf7 {[%emt 0:01:26]} 40. Kg3 {[%emt 0:00:00]} Bb6 {[%emt 0:00:00]} 41. Bd4 {[%emt 0:03:19]} Bc7 {[%emt 0:09:20]} 42. Kxg4 {[%emt 0:02:16]} d5 {[%emt 0:04:07]} 43. Kg5 {[%emt 0:07:13]} Bg3 {[%emt 0:02:25]} 44. Rc2 {[%emt 0:03:34]} Ra6 {[%emt 0:00:29]} 45. Bc5+ {[%emt 0:11:26]} Bd6 {[%emt 0:00:32]} 46. Bd4 {[%emt 0:00:03]} Ra8 {[%emt 0:01:14]} 47. f6+ {[%emt 0:02:23]} Kd7 {[%emt 0:01:31]} 48. Nf5 {[%emt 0:01:01]} Rg8+ {[%emt 0:00:52]} 49. Ng7 {[%emt 0:00:04]} Rh8 {[%emt 0:00:07]} 50. Nf5 {[%emt 0:04:24]} Rh3 {[%emt 0:05:02]} 51. Nxd6 {[%emt 0:08:47]} Kxd6 {[%emt 0:00:16]} 52. Bc5+ {[%emt 0:00:01]} Ke5 {[%emt 0:00:45]} 53. Bxb4 {[%emt 0:00:02]} Rg3+ {[%emt 0:01:35]} 54. Kh4 {[%emt 0:00:08]} Rg8 {[%emt 0:00:09]} 55. Rc7 {[%emt 0:01:04]} Kxf6 {[%emt 0:00:29]} 56. Bc3+ {[%emt 0:00:03]} Ke6 {[%emt 0:00:41]} 57. Bd4 {[%emt 0:02:27]} Rg2 {[%emt 0:02:49]} 58. a4 {[%emt 0:00:05]} Rd2 {[%emt 0:00:03]} 59. Be3 {[%emt 0:00:10]} Rd3 {[%emt 0:02:20]} 60. Bg5 {[%emt 0:00:04]} Bg6 {[%emt 0:00:38]} 61. Rc6+ {[%emt 0:01:15]} Kf7 {[%emt 0:00:16]} 62. Rc7+ {[%emt 0:00:03]} Kf8 {[%emt 0:00:54]} 63. Bh6+ {[%emt 0:01:15]} Ke8 {[%emt 0:00:10]} 64. Kg5 {[%emt 0:00:21]} Kd8 {[%emt 0:02:00]} 65. Rc1 {[%emt 0:00:41]} Be8 {[%emt 0:00:10]} 66. Kf5 {[%emt 0:00:24]} Rxb3 {[%emt 0:00:39]} 67. Ke5 {[%emt 0:00:11]} Bf7 {[%emt 0:02:17]} 68. a5 {[%emt 0:00:10]} Kd7 {[%emt 0:02:11]} 69. Ra1 {[%emt 0:00:22]} Kc7 {[%emt 0:00:16]} 70. Kd4 {[%emt 0:01:13]} Kb7 {[%emt 0:01:38]} 71. a6+ {[%emt 0:00:21]} Ka7 {[%emt 0:00:35]} 72. Bf8 {[%emt 0:00:03]} Rd3+ {[%emt 0:00:13]} 73. Ke5 {[%emt 0:00:07]} Rc3 {[%emt 0:00:14]} 74. Ra5 {[%emt 0:00:21]} e3 {[%emt 0:01:07]} 75. Bc5+ {[%emt 0:00:14]} Ka8 {[%emt 0:00:04]} 76. Bd4 {[%emt 0:01:37]} Rc4 {[%emt 0:00:39] Ke4} 1/2-1/2

[Event "3rd BSSZ-Aranytiz IM 2019"]
[Site "Budapest"]
[Date "2019.08.22"]
[Round "6.2"]
[White "Luong, Phuong Hanh"]
[Black "Nemeth, Zoltan"]
[Result "1-0"]
[ECO "D05"]
[WhiteElo "2313"]
[BlackElo "2275"]
[Annotator "NA"]
[PlyCount "121"]
[EventDate "2019.08.16"]
[EventType "tourn"]
[EventCountry "HUN"]
[SourceTitle "playchess.com"]
[Source "ChessBase"]
[SourceQuality "1"]
[TimeControl "40/5400+30:1800+30"]

1. d4 {[%emt 0:02:34]} Nf6 {[%emt 0:16:33]} 2. Nf3 {[%emt 0:00:06]} e6 {[%emt 0:01:08]} 3. e3 {[%emt 0:00:07]} d5 {[%emt 0:00:42]} 4. Bd3 {[%emt 0:00:10]} Be7 {[%emt 0:01:45]} 5. O-O {[%emt 0:00:08]} O-O {[%emt 0:00:04]} 6. Nbd2 {[%emt 0:01:30]} c5 {[%emt 0:03:01]} 7. dxc5 {[%emt 0:01:36]} Nc6 {[%emt 0:04:08]} 8. Nb3 {[%emt 0:03:20]} Nd7 {[%emt 0:02:04]} 9. e4 {[%emt 0:02:54]} dxe4 {[%emt 0:07:03]} 10. Bxe4 {[%emt 0:00:11]} Nxc5 {[%emt 0:00:15]} 11. Nxc5 {[%emt 0:00:55]} Qxd1 {[%emt 0:00:10]} 12. Rxd1 {[%emt 0:00:09]} Bxc5 {[%emt 0:00:05]} 13. Bf4 {[%emt 0:01:56]} Re8 {[%emt 0:07:48]} 14. Bd6 {[%emt 0:08:10]} Bb6 {[%emt 0:02:09]} 15. b4 {[%emt 0:03:01]} f5 {[%emt 0:22:25]} 16. Bxc6 bxc6 {[%emt 0:00:06]} 17. c4 {[%emt 0:02:05]} Bd8 {[%emt 0:01:54]} 18. Rab1 {[%emt 0:03:24]} Bf6 {[%emt 0:00:30]} 19. Ne5 {[%emt 0:01:58]} Bxe5 {[%emt 0:02:50]} 20. Bxe5 {[%emt 0:00:02]} Kf7 {[%emt 0:01:41]} 21. Rd6 {[%emt 0:05:16]} Bb7 {[%emt 0:05:07]} 22. Bxg7 {[%emt 0:00:49]} Rad8 {[%emt 0:04:37]} 23. Rbd1 {[%emt 0:00:23]} Rxd6 {[%emt 0:01:06]} 24. Rxd6 {[%emt 0:00:07]} Ke7 {[%emt 0:00:30]} 25. c5 {[%emt 0:00:57]} a5 {[%emt 0:02:53]} 26. a3 {[%emt 0:03:15]} axb4 {[%emt 0:00:25]} 27. axb4 {[%emt 0:00:03]} Rg8 {[%emt 0:02:18]} 28. Be5 {[%emt 0:00:22]} Rg4 {[%emt 0:03:05]} 29. f4 {[%emt 0:02:03]} h5 {[%emt 0:00:04]} 30. Kf2 {[%emt 0:07:58]} h4 {[%emt 0:00:26]} 31. Rd3 {[%emt 0:01:32]} Ba6 {[%emt 0:01:11]} 32. Ra3 {[%emt 0:00:13]} Bc4 {[%emt 0:00:12]} 33. Ra7+ {[%emt 0:04:55]} Ke8 {[%emt 0:00:05]} 34. h3 {[%emt 0:04:32]} Rg3 {[%emt 0:00:27]} 35. Rg7 {[%emt 0:13:17]} Ra3 {[%emt 0:00:26]} 36. Bf6 {[%emt 0:01:25]} Ra2+ {[%emt 0:00:08]} 37. Kg1 {[%emt 0:02:56]} Kf8 {[%emt 0:00:05]} 38. g4 {[%emt 0:07:36]} Ra3 {[%emt 0:03:25]} 39. g5 {[%emt 0:01:17]} e5 {[%emt 0:04:27]} 40. Bxe5 {[%emt 0:00:00]} Rxh3 {[%emt 0:00:00]} 41. Rh7 {[%emt 0:06:47]} Bd5 {[%emt 0:01:34]} 42. Kf2 {[%emt 0:00:28]} Rf3+ {[%emt 0:15:04]} 43. Kg1 {[%emt 0:02:47]} Rg3+ {[%emt 0:10:43]} 44. Kh2 {[%emt 0:00:16]} Rg4 {[%emt 0:00:47]} 45. Rh6 {[%emt 0:00:22]} Rg2+ {[%emt 0:02:46]} 46. Kh3 {[%emt 0:00:10]} Rg1 {[%emt 0:00:25]} 47. Kxh4 {[%emt 0:05:34]} Rh1+ {[%emt 0:02:29]} 48. Kg3 {[%emt 0:00:12]} Rxh6 {[%emt 0:01:01]} 49. gxh6 {[%emt 0:00:02]} Kg8 {[%emt 0:00:08]} 50. Kh4 {[%emt 0:00:19]} Kh7 {[%emt 0:00:07]} 51. Kg5 {[%emt 0:00:06]} Be4 {[%emt 0:00:53]} 52. Bf6 {[%emt 0:00:58]} Bd3 {[%emt 0:00:05]} 53. Bg7 {[%emt 0:00:08]} Bb5 {[%emt 0:02:04]} 54. Kxf5 {[%emt 0:00:30]} Bd3+ {[%emt 0:00:33]} 55. Kf6 {[%emt 0:01:43]} Kg8 {[%emt 0:00:24]} 56. f5 {[%emt 0:00:10]} Kh7 {[%emt 0:00:44]} 57. Ke6 {[%emt 0:00:08]} Kg8 {[%emt 0:00:18]} 58. f6 {[%emt 0:00:31]} Bc4+ {[%emt 0:00:48]} 59. Kd6 {[%emt 0:01:02]} Bb5 {[%emt 0:00:11]} 60. Bh8 {[%emt 0:01:37]} Ba4 {[%emt 0:00:18]} 61. h7+ {[%emt 0:00:33]} 1-0